[Event "Titled Tuesday Blitz August 23 Late 2022"]
[White "Djordjevic, Vuk"]
[Black "Ghazarian, Kirk"]
[WhiteFideId "902098"]
[BlackFideId "30908604"]
[WhiteElo "2456"]
[BlackElo "2074"]
[Result "0-1"]
[Round "11"]
[TimeControl "180+1"]
[Date "2022.08.23"]
[WhiteClock "0:00:01"]
[BlackClock "0:00:23"]

1. d4 {[%clk 0:03:00]}  Nf6 {[%clk 0:02:58]} 2. Bg5 {[%clk 0:03:01]}  g6 {[%clk 0:02:55]} 3. Bxf6 {[%clk 0:03:01]}  exf6 {[%clk 0:02:55]} 4. c4 {[%clk 0:03:02]}  Bg7 {[%clk 0:02:56]} 5. Nc3 {[%clk 0:03:03]}  f5 {[%clk 0:02:55]} 6. e3 {[%clk 0:03:03]}  b6 {[%clk 0:02:56]} 7. g3 {[%clk 0:03:01]}  Bb7 {[%clk 0:02:56]} 8. Nf3 {[%clk 0:03:02]}  O-O {[%clk 0:02:54]} 9. Bg2 {[%clk 0:03:02]}  d6 {[%clk 0:02:54]} 10. O-O {[%clk 0:03:02]}  Nd7 {[%clk 0:02:55]} 11. a4 {[%clk 0:03:01]}  a5 {[%clk 0:02:54]} 12. Nd2 {[%clk 0:02:54]}  Bxg2 {[%clk 0:02:54]} 13. Kxg2 {[%clk 0:02:55]}  Re8 {[%clk 0:02:53]} 14. Qf3 {[%clk 0:02:54]}  Nf6 {[%clk 0:02:52]} 15. Qc6 {[%clk 0:02:50]}  Qd7 {[%clk 0:02:43]} 16. Qxd7 {[%clk 0:02:49]}  Nxd7 {[%clk 0:02:44]} 17. Rfd1 {[%clk 0:02:49]}  c6 {[%clk 0:02:40]} 18. Ne2 {[%clk 0:02:39]}  Nf6 {[%clk 0:02:33]} 19. Ra3 {[%clk 0:02:39]}  Rab8 {[%clk 0:02:29]} 20. Rb3 {[%clk 0:02:37]}  Nd7 {[%clk 0:02:28]} 21. Nf4 {[%clk 0:02:35]}  Kf8 {[%clk 0:02:25]} 22. Nd3 {[%clk 0:02:25]}  Ke7 {[%clk 0:02:25]} 23. Nf3 {[%clk 0:02:23]}  Kd8 {[%clk 0:02:18]} 24. h4 {[%clk 0:02:09]}  h5 {[%clk 0:02:17]} 25. c5 {[%clk 0:01:55]}  bxc5 {[%clk 0:02:11]} 26. Rxb8+ {[%clk 0:01:54]}  Nxb8 {[%clk 0:02:12]} 27. dxc5 {[%clk 0:01:54]}  d5 {[%clk 0:02:10]} 28. b4 {[%clk 0:01:39]}  axb4 {[%clk 0:02:10]} 29. Nxb4 {[%clk 0:01:40]}  Kc7 {[%clk 0:02:10]} 30. Ng5 {[%clk 0:01:06]}  Re7 {[%clk 0:02:02]} 31. a5 {[%clk 0:01:04]}  Bc3 {[%clk 0:01:55]} 32. a6 {[%clk 0:01:00]}  Bxb4 {[%clk 0:01:46]} 33. a7 {[%clk 0:01:00]}  Kb7 {[%clk 0:01:46]} 34. axb8=Q+ {[%clk 0:00:40]}  Kxb8 {[%clk 0:01:47]} 35. Rb1 {[%clk 0:00:39]}  Rb7 {[%clk 0:01:47]} 36. Nxf7 {[%clk 0:00:38]}  Bxc5 {[%clk 0:01:16]} 37. Rxb7+ {[%clk 0:00:38]}  Kxb7 {[%clk 0:01:17]} 38. Ne5 {[%clk 0:00:39]}  Bd6 {[%clk 0:01:17]} 39. Nxg6 {[%clk 0:00:39]}  c5 {[%clk 0:01:17]} 40. Nh8 {[%clk 0:00:36]}  c4 {[%clk 0:01:16]} 41. Kf3 {[%clk 0:00:35]}  Kc6 {[%clk 0:01:11]} 42. Nf7 {[%clk 0:00:35]}  Bf8 {[%clk 0:01:00]} 43. Ke2 {[%clk 0:00:33]}  d4 {[%clk 0:00:37]} 44. exd4 {[%clk 0:00:28]}  Kd5 {[%clk 0:00:37]} 45. Ke3 {[%clk 0:00:24]}  Bg7 {[%clk 0:00:37]} 46. Ng5 {[%clk 0:00:17]}  Bxd4+ {[%clk 0:00:35]} 47. Ke2 {[%clk 0:00:17]}  c3 {[%clk 0:00:32]} 48. Nf3 {[%clk 0:00:01]}  Bxf2 {[%clk 0:00:26]} 49. Ne1 {[%clk 0:00:01]}  Bxe1 {[%clk 0:00:23]} 0-1


[Site "https://www.chess.com"]

[Event "Titled Tuesday Blitz August 23 Late 2022"]
[White "Guz, Ari"]
[Black "Elissalt Cardenas, Hector"]
[WhiteFideId "2825759"]
[BlackFideId "3500632"]
[WhiteElo "1913"]
[BlackElo "2159"]
[Result "1-0"]
[Round "11"]
[TimeControl "180+1"]
[Date "2022.08.23"]
[WhiteClock "0:01:16"]
[BlackClock "0:00:01"]

1. e4 {[%clk 0:03:00]}  d6 {[%clk 0:02:58]} 2. d4 {[%clk 0:03:00]}  Nf6 {[%clk 0:02:55]} 3. Nc3 {[%clk 0:03:01]}  e5 {[%clk 0:02:54]} 4. Nf3 {[%clk 0:02:59]}  Nbd7 {[%clk 0:02:50]} 5. h4 {[%clk 0:02:59]}  Be7 {[%clk 0:02:43]} 6. h5 {[%clk 0:02:59]}  h6 {[%clk 0:02:38]} 7. g4 {[%clk 0:02:59]}  Nxg4 {[%clk 0:02:32]} 8. Rg1 {[%clk 0:02:59]}  Ndf6 {[%clk 0:02:23]} 9. Be2 {[%clk 0:02:59]}  c6 {[%clk 0:02:16]} 10. dxe5 {[%clk 0:02:50]}  dxe5 {[%clk 0:01:56]} 11. Nd2 {[%clk 0:02:49]}  Bc5 {[%clk 0:01:46]} 12. Bxg4 {[%clk 0:02:48]}  Qd4 {[%clk 0:01:45]} 13. Qe2 {[%clk 0:02:29]}  Bxg4 {[%clk 0:01:30]} 14. Rxg4 {[%clk 0:02:29]}  Nxg4 {[%clk 0:01:15]} 15. Qxg4 {[%clk 0:02:30]}  Qxf2+ {[%clk 0:01:14]} 16. Kd1 {[%clk 0:02:30]}  Rd8 {[%clk 0:01:02]} 17. Qe2 {[%clk 0:02:18]}  Qg1+ {[%clk 0:00:45]} 18. Qe1 {[%clk 0:02:18]}  Qg4+ {[%clk 0:00:44]} 19. Qe2 {[%clk 0:02:19]}  Qg1+ {[%clk 0:00:40]} 20. Qe1 {[%clk 0:02:19]}  Qg4+ {[%clk 0:00:40]} 21. Ne2 {[%clk 0:02:17]}  O-O {[%clk 0:00:34]} 22. c3 {[%clk 0:02:07]}  Be3 {[%clk 0:00:34]} 23. Kc2 {[%clk 0:02:07]}  Bxd2 {[%clk 0:00:34]} 24. Bxd2 {[%clk 0:02:08]}  Qxe4+ {[%clk 0:00:34]} 25. Kc1 {[%clk 0:02:08]}  Rd3 {[%clk 0:00:31]} 26. Ng3 {[%clk 0:02:06]}  Qg4 {[%clk 0:00:28]} 27. Nf1 {[%clk 0:02:02]}  Rfd8 {[%clk 0:00:26]} 28. Kc2 {[%clk 0:02:02]}  Qg2 {[%clk 0:00:23]} 29. Rd1 {[%clk 0:02:02]}  Rf3 {[%clk 0:00:22]} 30. Ne3 {[%clk 0:01:59]}  Qh3 {[%clk 0:00:19]} 31. Nc4 {[%clk 0:01:56]}  Qf5+ {[%clk 0:00:18]} 32. Kc1 {[%clk 0:01:48]}  f6 {[%clk 0:00:18]} 33. Ne3 {[%clk 0:01:46]}  Qd3 {[%clk 0:00:16]} 34. Nc2 {[%clk 0:01:40]}  Qf5 {[%clk 0:00:15]} 35. Qe2 {[%clk 0:01:35]}  Rf2 {[%clk 0:00:15]} 36. Qc4+ {[%clk 0:01:35]}  Kh8 {[%clk 0:00:15]} 37. Ne3 {[%clk 0:01:33]}  Qf3 {[%clk 0:00:14]} 38. Nc2 {[%clk 0:01:23]}  Qe2 {[%clk 0:00:08]} 39. Qxe2 {[%clk 0:01:19]}  Rxe2 {[%clk 0:00:07]} 40. Nb4 {[%clk 0:01:18]}  a5 {[%clk 0:00:06]} 41. Nc2 {[%clk 0:01:18]}  Rh2 {[%clk 0:00:04]} 42. Ne3 {[%clk 0:01:16]}  Rxh5 {[%clk 0:00:03]} 43. Rg1 {[%clk 0:01:16]}  Rh2 {[%clk 0:00:03]} 44. Nf1 {[%clk 0:01:17]}  Rf2 {[%clk 0:00:02]} 45. Be3 {[%clk 0:01:16]}  Re2 {[%clk 0:00:01]} 46. Bb6 {[%clk 0:01:16]} 1-0


[Site "https://www.chess.com"]

[Event "Titled Tuesday Blitz August 23 Late 2022"]
[White "Jones, Gawain C B"]
[Black "Machidon, Cristi"]
[WhiteFideId "409561"]
[BlackFideId "13904590"]
[WhiteElo "2657"]
[BlackElo "2312"]
[Result "1/2-1/2"]
[Round "11"]
[TimeControl "180+1"]
[Date "2022.08.23"]
[WhiteClock "0:00:02"]
[BlackClock "0:00:07"]

1. e4 {[%clk 0:03:00]}  c6 {[%clk 0:02:57]} 2. d4 {[%clk 0:02:59]}  d5 {[%clk 0:02:58]} 3. Nc3 {[%clk 0:02:59]}  dxe4 {[%clk 0:02:58]} 4. Nxe4 {[%clk 0:02:59]}  Bf5 {[%clk 0:02:58]} 5. Ng3 {[%clk 0:02:58]}  Bg6 {[%clk 0:02:58]} 6. h4 {[%clk 0:02:59]}  h6 {[%clk 0:02:58]} 7. Nf3 {[%clk 0:02:59]}  Nd7 {[%clk 0:02:57]} 8. h5 {[%clk 0:03:00]}  Bh7 {[%clk 0:02:57]} 9. Bd3 {[%clk 0:03:00]}  Bxd3 {[%clk 0:02:57]} 10. Qxd3 {[%clk 0:03:01]}  e6 {[%clk 0:02:57]} 11. Bd2 {[%clk 0:03:01]}  Ngf6 {[%clk 0:02:55]} 12. O-O-O {[%clk 0:03:01]}  Be7 {[%clk 0:02:54]} 13. Kb1 {[%clk 0:02:59]}  Qc7 {[%clk 0:02:51]} 14. Rhe1 {[%clk 0:02:56]}  O-O {[%clk 0:02:47]} 15. Nf5 {[%clk 0:02:55]}  Rfe8 {[%clk 0:02:39]} 16. Nxg7 {[%clk 0:02:36]}  Kxg7 {[%clk 0:02:35]} 17. Rxe6 {[%clk 0:02:35]}  Nf8 {[%clk 0:02:16]} 18. Re5 {[%clk 0:02:20]}  Bd6 {[%clk 0:02:04]} 19. Bf4 {[%clk 0:01:57]}  Bxe5 {[%clk 0:01:55]} 20. Bxe5 {[%clk 0:01:57]}  Rxe5 {[%clk 0:01:55]} 21. dxe5 {[%clk 0:01:57]}  Nd5 {[%clk 0:01:49]} 22. c4 {[%clk 0:01:51]}  Nf4 {[%clk 0:01:43]} 23. Qf5 {[%clk 0:01:49]}  N4e6 {[%clk 0:01:33]} 24. Qf6+ {[%clk 0:01:43]}  Kh7 {[%clk 0:01:33]} 25. Nh4 {[%clk 0:01:37]}  Ng7 {[%clk 0:00:48]} 26. Rd6 {[%clk 0:01:25]}  Nfe6 {[%clk 0:00:45]} 27. f4 {[%clk 0:01:13]}  Rd8 {[%clk 0:00:42]} 28. Nf5 {[%clk 0:01:06]}  Nxf5 {[%clk 0:00:32]} 29. Qxf5+ {[%clk 0:01:07]}  Kg8 {[%clk 0:00:32]} 30. Qg4+ {[%clk 0:01:04]}  Kf8 {[%clk 0:00:28]} 31. f5 {[%clk 0:01:04]}  Rxd6 {[%clk 0:00:25]} 32. exd6 {[%clk 0:01:05]}  Qxd6 {[%clk 0:00:25]} 33. fxe6 {[%clk 0:01:04]}  Qd3+ {[%clk 0:00:25]} 34. Kc1 {[%clk 0:01:04]}  Qe3+ {[%clk 0:00:22]} 35. Kc2 {[%clk 0:01:02]}  fxe6 {[%clk 0:00:22]} 36. a4 {[%clk 0:00:26]}  Ke7 {[%clk 0:00:20]} 37. Qg7+ {[%clk 0:00:24]}  Kd6 {[%clk 0:00:18]} 38. Qxb7 {[%clk 0:00:17]}  Qe2+ {[%clk 0:00:16]} 39. Kc3 {[%clk 0:00:17]}  Qe3+ {[%clk 0:00:16]} 40. Kb4 {[%clk 0:00:12]}  Qd2+ {[%clk 0:00:12]} 41. Ka3 {[%clk 0:00:10]}  Qxg2 {[%clk 0:00:03]} 42. Qxa7 {[%clk 0:00:08]}  Qh3+ {[%clk 0:00:02]} 43. Ka2 {[%clk 0:00:08]}  Qxh5 {[%clk 0:00:02]} 44. a5 {[%clk 0:00:08]}  Qc5 {[%clk 0:00:01]} 45. Qxc5+ {[%clk 0:00:07]}  Kxc5 {[%clk 0:00:02]} 46. b4+ {[%clk 0:00:08]}  Kd6 {[%clk 0:00:01]} 47. Kb3 {[%clk 0:00:05]}  h5 {[%clk 0:00:01]} 48. b5 {[%clk 0:00:02]}  Kc7 {[%clk 0:00:01]} 49. Kb4 {[%clk 0:00:02]}  cxb5 {[%clk 0:00:01]} 50. cxb5 {[%clk 0:00:02]}  Kb7 {[%clk 0:00:02]} 51. Kc5 {[%clk 0:00:02]}  h4 {[%clk 0:00:03]} 52. a6+ {[%clk 0:00:02]}  Ka7 {[%clk 0:00:03]} 53. Kc6 {[%clk 0:00:02]}  h3 {[%clk 0:00:04]} 54. b6+ {[%clk 0:00:02]}  Kxa6 {[%clk 0:00:04]} 55. b7 {[%clk 0:00:03]}  h2 {[%clk 0:00:04]} 56. b8=Q {[%clk 0:00:03]}  h1=Q+ {[%clk 0:00:05]} 57. Kd7 {[%clk 0:00:02]}  Qd5+ {[%clk 0:00:06]} 58. Ke7 {[%clk 0:00:02]}  Qc5+ {[%clk 0:00:06]} 59. Kxe6 {[%clk 0:00:02]}  Qb6+ {[%clk 0:00:06]} 60. Qxb6+ {[%clk 0:00:02]}  Kxb6 {[%clk 0:00:07]} 1/2-1/2


[Site "https://www.chess.com"]

[Event "Titled Tuesday Blitz August 23 Late 2022"]
[White "Kamsky, Gata"]
[Black "Thomforde-Toates, Noah"]
[WhiteFideId "2000024"]
[BlackFideId "30951992"]
[WhiteElo "2666"]
[BlackElo "2617"]
[Result "1-0"]
[Round "11"]
[TimeControl "180+1"]
[Date "2022.08.23"]
[WhiteClock "0:00:28"]
[BlackClock "0:00:06"]

1. e4 {[%clk 0:03:00]}  c5 {[%clk 0:02:58]} 2. Nc3 {[%clk 0:02:59]}  g6 {[%clk 0:02:57]} 3. f4 {[%clk 0:02:57]}  Nc6 {[%clk 0:02:55]} 4. Nf3 {[%clk 0:02:58]}  Bg7 {[%clk 0:02:55]} 5. Bb5 {[%clk 0:02:49]}  e6 {[%clk 0:02:53]} 6. Bxc6 {[%clk 0:02:48]}  bxc6 {[%clk 0:02:49]} 7. e5 {[%clk 0:02:48]}  d5 {[%clk 0:02:48]} 8. O-O {[%clk 0:02:45]}  Ne7 {[%clk 0:02:47]} 9. d3 {[%clk 0:02:42]}  h5 {[%clk 0:02:44]} 10. Na4 {[%clk 0:02:42]}  Qa5 {[%clk 0:02:27]} 11. c4 {[%clk 0:02:37]}  Nf5 {[%clk 0:02:24]} 12. Bd2 {[%clk 0:02:32]}  Qc7 {[%clk 0:02:21]} 13. Nxc5 {[%clk 0:02:31]}  Qb6 {[%clk 0:02:18]} 14. b4 {[%clk 0:02:30]}  Bf8 {[%clk 0:02:16]} 15. d4 {[%clk 0:02:10]}  dxc4 {[%clk 0:02:11]} 16. Qc2 {[%clk 0:02:07]}  Bxc5 {[%clk 0:01:11]} 17. dxc5 {[%clk 0:02:03]}  Qd8 {[%clk 0:01:06]} 18. Qxc4 {[%clk 0:01:58]}  Qd5 {[%clk 0:01:04]} 19. Qe2 {[%clk 0:01:48]}  a5 {[%clk 0:00:56]} 20. Rfd1 {[%clk 0:01:48]}  Ba6 {[%clk 0:00:52]} 21. Qf2 {[%clk 0:01:40]}  axb4 {[%clk 0:00:52]} 22. Bxb4 {[%clk 0:01:39]}  Qe4 {[%clk 0:00:52]} 23. a3 {[%clk 0:01:27]}  Qxf4 {[%clk 0:00:48]} 24. Bd2 {[%clk 0:01:23]}  Qe4 {[%clk 0:00:45]} 25. Re1 {[%clk 0:01:23]}  Qa4 {[%clk 0:00:42]} 26. Bg5 {[%clk 0:01:21]}  O-O {[%clk 0:00:34]} 27. Bf6 {[%clk 0:01:18]}  Qf4 {[%clk 0:00:32]} 28. Rab1 {[%clk 0:01:08]}  Rab8 {[%clk 0:00:23]} 29. Rb6 {[%clk 0:01:06]}  Bb5 {[%clk 0:00:20]} 30. g3 {[%clk 0:01:04]}  Qc4 {[%clk 0:00:19]} 31. Nd2 {[%clk 0:01:02]}  Qd4 {[%clk 0:00:19]} 32. Ne4 {[%clk 0:01:00]}  Qxf2+ {[%clk 0:00:19]} 33. Kxf2 {[%clk 0:01:00]}  Rxb6 {[%clk 0:00:19]} 34. cxb6 {[%clk 0:00:59]}  Rb8 {[%clk 0:00:20]} 35. Nc5 {[%clk 0:00:57]}  Rxb6 {[%clk 0:00:19]} 36. Rb1 {[%clk 0:00:58]}  Kh7 {[%clk 0:00:14]} 37. a4 {[%clk 0:00:57]}  g5 {[%clk 0:00:14]} 38. Bxg5 {[%clk 0:00:57]}  Kg6 {[%clk 0:00:14]} 39. Bf4 {[%clk 0:00:55]}  Rb8 {[%clk 0:00:12]} 40. axb5 {[%clk 0:00:54]}  cxb5 {[%clk 0:00:13]} 41. Rb4 {[%clk 0:00:53]}  Ra8 {[%clk 0:00:12]} 42. h4 {[%clk 0:00:50]}  Ra2+ {[%clk 0:00:11]} 43. Kf3 {[%clk 0:00:49]}  Ra3+ {[%clk 0:00:12]} 44. Kg2 {[%clk 0:00:48]}  Ra2+ {[%clk 0:00:12]} 45. Kh3 {[%clk 0:00:48]}  Rc2 {[%clk 0:00:11]} 46. Rxb5 {[%clk 0:00:48]}  Nd4 {[%clk 0:00:11]} 47. Ra5 {[%clk 0:00:48]}  Nf3 {[%clk 0:00:11]} 48. g4 {[%clk 0:00:46]}  Ng1+ {[%clk 0:00:12]} 49. Kg3 {[%clk 0:00:46]}  Ne2+ {[%clk 0:00:12]} 50. Kf3 {[%clk 0:00:46]}  hxg4+ {[%clk 0:00:12]} 51. Kxg4 {[%clk 0:00:46]}  Rc4 {[%clk 0:00:12]} 52. h5+ {[%clk 0:00:46]}  Kh7 {[%clk 0:00:12]} 53. Nd3 {[%clk 0:00:46]}  Rd4 {[%clk 0:00:13]} 54. Ra3 {[%clk 0:00:47]}  Kg7 {[%clk 0:00:10]} 55. Kf3 {[%clk 0:00:47]}  Ng1+ {[%clk 0:00:11]} 56. Ke3 {[%clk 0:00:47]}  Rc4 {[%clk 0:00:11]} 57. Ra2 {[%clk 0:00:47]}  Nh3 {[%clk 0:00:11]} 58. Rh2 {[%clk 0:00:47]}  Kh7 {[%clk 0:00:12]} 59. Rxh3 {[%clk 0:00:46]}  Ra4 {[%clk 0:00:11]} 60. Rg3 {[%clk 0:00:46]}  Ra8 {[%clk 0:00:11]} 61. Bg5 {[%clk 0:00:46]}  Rg8 {[%clk 0:00:09]} 62. Kf3 {[%clk 0:00:42]}  Rc8 {[%clk 0:00:08]} 63. Bf6 {[%clk 0:00:32]}  Rc3 {[%clk 0:00:07]} 64. Ke3 {[%clk 0:00:31]}  Kh6 {[%clk 0:00:07]} 65. Kd4 {[%clk 0:00:29]}  Ra3 {[%clk 0:00:07]} 66. Rg7 {[%clk 0:00:29]}  Ra4+ {[%clk 0:00:07]} 67. Kc5 {[%clk 0:00:29]}  Ra3 {[%clk 0:00:06]} 68. Nb4 {[%clk 0:00:28]}  Ra5+ {[%clk 0:00:03]} 69. Kd6 {[%clk 0:00:27]}  Ra4 {[%clk 0:00:04]} 70. Nc6 {[%clk 0:00:27]}  Ra6 {[%clk 0:00:04]} 71. Rxf7 {[%clk 0:00:26]}  Rb6 {[%clk 0:00:04]} 72. Re7 {[%clk 0:00:26]}  Ra6 {[%clk 0:00:04]} 73. Rxe6 {[%clk 0:00:27]}  Kxh5 {[%clk 0:00:05]} 74. Re8 {[%clk 0:00:27]}  Kg6 {[%clk 0:00:05]} 75. Rf8 {[%clk 0:00:27]}  Kf5 {[%clk 0:00:06]} 76. e6 {[%clk 0:00:28]}  Rxc6+ {[%clk 0:00:05]} 77. Kxc6 {[%clk 0:00:28]}  Kxe6 {[%clk 0:00:06]} 78. Bd4 {[%clk 0:00:27]}  Ke7 {[%clk 0:00:06]} 79. Rf6 {[%clk 0:00:28]}  Ke8 {[%clk 0:00:06]} 80. Kd6 {[%clk 0:00:28]} 1-0


[Site "https://www.chess.com"]

[Event "Titled Tuesday Blitz August 23 Late 2022"]
[White "Lenderman, Aleksandr"]
[Black "Pakleza, Zbigniew"]
[WhiteFideId "2021285"]
[BlackFideId "1119290"]
[WhiteElo "2607"]
[BlackElo "2411"]
[Result "0-1"]
[Round "11"]
[TimeControl "180+1"]
[Date "2022.08.23"]
[WhiteClock "0:01:34"]
[BlackClock "0:00:13"]

1. e4 {[%clk 0:03:00]}  d6 {[%clk 0:02:59]} 2. d4 {[%clk 0:02:59]}  Nf6 {[%clk 0:03:00]} 3. Nc3 {[%clk 0:02:58]}  c6 {[%clk 0:03:01]} 4. Nf3 {[%clk 0:02:51]}  Bg4 {[%clk 0:02:59]} 5. Be2 {[%clk 0:02:51]}  e6 {[%clk 0:02:58]} 6. O-O {[%clk 0:02:51]}  d5 {[%clk 0:02:58]} 7. Ne5 {[%clk 0:02:38]}  Bxe2 {[%clk 0:02:57]} 8. Qxe2 {[%clk 0:02:39]}  Be7 {[%clk 0:02:56]} 9. Rd1 {[%clk 0:02:39]}  O-O {[%clk 0:02:55]} 10. Bf4 {[%clk 0:02:39]}  Bb4 {[%clk 0:02:46]} 11. exd5 {[%clk 0:02:37]}  exd5 {[%clk 0:02:31]} 12. Rd3 {[%clk 0:02:35]}  Nbd7 {[%clk 0:02:28]} 13. Nd1 {[%clk 0:02:35]}  Ba5 {[%clk 0:01:57]} 14. Ne3 {[%clk 0:02:34]}  Re8 {[%clk 0:01:50]} 15. Nf5 {[%clk 0:02:17]}  Nf8 {[%clk 0:01:50]} 16. Bh6 {[%clk 0:01:58]}  gxh6 {[%clk 0:01:01]} 17. Nxh6+ {[%clk 0:01:59]}  Kg7 {[%clk 0:00:58]} 18. Nhxf7 {[%clk 0:01:57]}  Qe7 {[%clk 0:00:42]} 19. Rg3+ {[%clk 0:01:56]}  Ng6 {[%clk 0:00:39]} 20. Qd3 {[%clk 0:01:56]}  Ne4 {[%clk 0:00:30]} 21. Rxg6+ {[%clk 0:01:51]}  hxg6 {[%clk 0:00:29]} 22. f3 {[%clk 0:01:51]}  Rf8 {[%clk 0:00:14]} 23. fxe4 {[%clk 0:01:50]}  Rxf7 {[%clk 0:00:15]} 24. Nxf7 {[%clk 0:01:48]}  Qxf7 {[%clk 0:00:15]} 25. Rf1 {[%clk 0:01:46]}  Qe6 {[%clk 0:00:16]} 26. e5 {[%clk 0:01:43]}  Bb6 {[%clk 0:00:12]} 27. Rf6 {[%clk 0:01:42]}  Qg4 {[%clk 0:00:12]} 28. c3 {[%clk 0:01:41]}  Rf8 {[%clk 0:00:11]} 29. h3 {[%clk 0:01:42]}  Qg5 {[%clk 0:00:11]} 30. Rxf8 {[%clk 0:01:37]}  Kxf8 {[%clk 0:00:12]} 31. Qf3+ {[%clk 0:01:37]}  Qf5 {[%clk 0:00:12]} 32. Qxf5+ {[%clk 0:01:36]}  gxf5 {[%clk 0:00:13]} 33. Kf2 {[%clk 0:01:35]}  c5 {[%clk 0:00:13]} 34. dxc5 {[%clk 0:01:34]}  Bxc5+ {[%clk 0:00:14]} 35. Kf3 {[%clk 0:01:34]}  Kf7 {[%clk 0:00:14]} 36. Kf4 {[%clk 0:01:32]}  Ke6 {[%clk 0:00:14]} 37. g4 {[%clk 0:01:33]}  fxg4 {[%clk 0:00:15]} 38. hxg4 {[%clk 0:01:33]}  Bf8 {[%clk 0:00:13]} 39. g5 {[%clk 0:01:30]}  Bg7 {[%clk 0:00:13]} 40. g6 {[%clk 0:01:31]}  Bxe5+ {[%clk 0:00:13]} 41. Ke3 {[%clk 0:01:32]}  Kf6 {[%clk 0:00:13]} 42. Kd3 {[%clk 0:01:32]}  Kxg6 {[%clk 0:00:13]} 43. b3 {[%clk 0:01:33]}  Kf6 {[%clk 0:00:13]} 44. c4 {[%clk 0:01:34]}  d4 {[%clk 0:00:13]} 0-1


[Site "https://www.chess.com"]

[Event "Titled Tuesday Blitz August 23 Late 2022"]
[White "Makarian, Rudik"]
[Black "Salem, A.R. Saleh"]
[WhiteFideId "44105681"]
[BlackFideId "9301348"]
[WhiteElo "2403"]
[BlackElo "2674"]
[Result "1-0"]
[Round "11"]
[TimeControl "180+1"]
[Date "2022.08.23"]
[WhiteClock "0:00:11"]
[BlackClock "0:00:01"]

1. d3 {[%clk 0:03:00]}  d5 {[%clk 0:02:59]} 2. f4 {[%clk 0:03:01]}  c5 {[%clk 0:02:58]} 3. Nf3 {[%clk 0:03:02]}  Nc6 {[%clk 0:02:59]} 4. g3 {[%clk 0:03:02]}  Bg4 {[%clk 0:02:59]} 5. Bg2 {[%clk 0:03:02]}  h5 {[%clk 0:02:59]} 6. Nc3 {[%clk 0:02:58]}  e6 {[%clk 0:02:59]} 7. h3 {[%clk 0:02:46]}  Bxf3 {[%clk 0:02:59]} 8. Bxf3 {[%clk 0:02:47]}  Nd4 {[%clk 0:02:43]} 9. e4 {[%clk 0:02:40]}  Nxf3+ {[%clk 0:02:37]} 10. Qxf3 {[%clk 0:02:41]}  d4 {[%clk 0:02:37]} 11. Ne2 {[%clk 0:02:40]}  Ne7 {[%clk 0:02:30]} 12. O-O {[%clk 0:02:37]}  Nc6 {[%clk 0:02:26]} 13. Bd2 {[%clk 0:02:36]}  Be7 {[%clk 0:02:22]} 14. Kg2 {[%clk 0:02:36]}  Qc7 {[%clk 0:02:13]} 15. a3 {[%clk 0:02:35]}  a6 {[%clk 0:02:05]} 16. c4 {[%clk 0:02:27]}  dxc3 {[%clk 0:02:04]} 17. Bxc3 {[%clk 0:02:27]}  O-O-O {[%clk 0:02:01]} 18. Bxg7 {[%clk 0:02:20]}  Rhg8 {[%clk 0:01:59]} 19. Bc3 {[%clk 0:02:21]}  h4 {[%clk 0:01:42]} 20. g4 {[%clk 0:02:20]}  Qb6 {[%clk 0:01:43]} 21. Rad1 {[%clk 0:02:12]}  Qb3 {[%clk 0:01:37]} 22. d4 {[%clk 0:02:09]}  Qc4 {[%clk 0:01:06]} 23. d5 {[%clk 0:02:08]}  exd5 {[%clk 0:01:06]} 24. exd5 {[%clk 0:02:09]}  Na7 {[%clk 0:01:06]} 25. Qd3 {[%clk 0:01:51]}  Qa4 {[%clk 0:00:50]} 26. Be5 {[%clk 0:01:30]}  f6 {[%clk 0:00:48]} 27. d6 {[%clk 0:01:03]}  fxe5 {[%clk 0:00:42]} 28. Qf5+ {[%clk 0:01:02]}  Kb8 {[%clk 0:00:38]} 29. dxe7 {[%clk 0:01:03]}  Rde8 {[%clk 0:00:18]} 30. Qxe5+ {[%clk 0:01:02]}  Ka8 {[%clk 0:00:19]} 31. Nc3 {[%clk 0:01:00]}  Qb3 {[%clk 0:00:13]} 32. Rd2 {[%clk 0:00:39]}  Nc6 {[%clk 0:00:13]} 33. Qd5 {[%clk 0:00:39]}  Qb6 {[%clk 0:00:12]} 34. Re1 {[%clk 0:00:37]}  Rg7 {[%clk 0:00:12]} 35. Rde2 {[%clk 0:00:32]}  Rexe7 {[%clk 0:00:08]} 36. f5 {[%clk 0:00:24]}  Rxe2+ {[%clk 0:00:07]} 37. Rxe2 {[%clk 0:00:24]}  Ka7 {[%clk 0:00:07]} 38. f6 {[%clk 0:00:22]}  Rc7 {[%clk 0:00:04]} 39. f7 {[%clk 0:00:20]}  Ne7 {[%clk 0:00:03]} 40. f8=Q {[%clk 0:00:12]}  Nxd5 {[%clk 0:00:04]} 41. Nxd5 {[%clk 0:00:13]}  Qc6 {[%clk 0:00:05]} 42. Qf3 {[%clk 0:00:13]}  Rd7 {[%clk 0:00:05]} 43. Nf6 {[%clk 0:00:12]}  Qc7 {[%clk 0:00:01]} 44. Nxd7 {[%clk 0:00:11]} 1-0


[Site "https://www.chess.com"]

[Event "Titled Tuesday Blitz August 23 Late 2022"]
[White "Martic, Ivan"]
[Black "Bryakin, Mikhail"]
[WhiteFideId "929301"]
[BlackFideId "4165314"]
[WhiteElo "2355"]
[BlackElo "2353"]
[Result "0-1"]
[Round "11"]
[TimeControl "180+1"]
[Date "2022.08.23"]
[WhiteClock "0:01:19"]
[BlackClock "0:02:11"]

1. e4 {[%clk 0:03:00]}  d5 {[%clk 0:03:00]} 2. exd5 {[%clk 0:03:00]}  Qxd5 {[%clk 0:03:01]} 3. h3 {[%clk 0:02:57]}  Nc6 {[%clk 0:02:57]} 4. c4 {[%clk 0:02:57]}  Qd8 {[%clk 0:02:56]} 5. Nf3 {[%clk 0:02:55]}  e5 {[%clk 0:02:56]} 6. Nc3 {[%clk 0:02:52]}  Nf6 {[%clk 0:02:57]} 7. Be2 {[%clk 0:02:51]}  Bc5 {[%clk 0:02:57]} 8. O-O {[%clk 0:02:49]}  O-O {[%clk 0:02:57]} 9. d3 {[%clk 0:02:46]}  h6 {[%clk 0:02:58]} 10. a3 {[%clk 0:02:41]}  a5 {[%clk 0:02:57]} 11. Rb1 {[%clk 0:02:33]}  Bf5 {[%clk 0:02:55]} 12. Na4 {[%clk 0:02:33]}  Ba7 {[%clk 0:02:52]} 13. b4 {[%clk 0:02:27]}  e4 {[%clk 0:02:53]} 14. Nh4 {[%clk 0:02:16]}  Bh7 {[%clk 0:02:53]} 15. dxe4 {[%clk 0:02:00]}  Bxe4 {[%clk 0:02:54]} 16. Rb2 {[%clk 0:01:55]}  axb4 {[%clk 0:02:54]} 17. axb4 {[%clk 0:01:54]}  Qxd1 {[%clk 0:02:53]} 18. Rxd1 {[%clk 0:01:55]}  Bd4 {[%clk 0:02:54]} 19. Ra2 {[%clk 0:01:52]}  Nxb4 {[%clk 0:02:54]} 20. Ra3 {[%clk 0:01:46]}  c5 {[%clk 0:02:39]} 21. Nb6 {[%clk 0:01:38]}  Rxa3 {[%clk 0:02:27]} 22. Bxa3 {[%clk 0:01:39]}  Nc2 {[%clk 0:02:24]} 23. Bc1 {[%clk 0:01:31]}  Re8 {[%clk 0:02:24]} 24. Bf3 {[%clk 0:01:28]}  g5 {[%clk 0:02:21]} 25. Bxe4 {[%clk 0:01:28]}  Nxe4 {[%clk 0:02:21]} 26. Nf3 {[%clk 0:01:28]}  Bxf2+ {[%clk 0:02:18]} 27. Kf1 {[%clk 0:01:28]}  Ne3+ {[%clk 0:02:12]} 28. Bxe3 {[%clk 0:01:27]}  Bxe3 {[%clk 0:02:13]} 29. Nd5 {[%clk 0:01:21]}  Ng3+ {[%clk 0:02:12]} 30. Ke1 {[%clk 0:01:21]}  Bd4+ {[%clk 0:02:10]} 31. Kd2 {[%clk 0:01:20]}  Re2+ {[%clk 0:02:10]} 32. Kc1 {[%clk 0:01:19]}  Rxg2 {[%clk 0:02:10]} 33. Nxd4 {[%clk 0:01:19]}  cxd4 {[%clk 0:02:11]} 34. Rxd4 {[%clk 0:01:19]}  Ne2+ {[%clk 0:02:11]} 0-1


[Site "https://www.chess.com"]